bitfinex/quotes_SOLUSD_20251124
["timestamp","ask_amount","ask_price","bid_price","bid_amount"]
[1764005903331,8.01526788,136.65,136.62,1.99999999]
[1764005904407,18.13231323,136.67,136.63,2.66999999]
[1764005904611,18.13231323,136.67,136.63,1.99999999]
[1764005904612,10.69704535,136.67,136.63,1.99999999]
[1764005904807,18.8702686,136.69,136.63,1.99999999]
[1764005904808,3.38,136.66,136.65,1.99999999]
[1764005906838,18.71269799,136.66,136.62,1.99999999]
[1764005907009,18.71269799,136.66,136.63,1.99999999]
[1764005907010,7.43526788,136.64,136.63,1.99999999]
[1764005907212,7.43526788,136.75,136.67,1.99999999]
[1764005907408,3.38,136.74,136.7,1.99999999]
[1764005907607,3.38,136.74,136.71,1.99999999]
[1764005907856,3.38,136.74,136.71,10.10526787]
[1764005908132,3.38,136.74,136.71,1.99999999]
[1764005909063,10.69322287,136.74,136.71,1.99999999]
[1764005909424,3.38,136.74,136.71,1.99999999]
[1764005910121,3.38,136.74,136.72,2.66999999]
[1764005910537,3.38,136.74,136.72,1.99999999]
[1764005910930,10.69320757,136.74,136.72,1.99999999]
[1764005911258,3.38,136.74,136.72,1.99999999]
[1764005911557,7.43526788,136.79,136.74,1.99999999]
[1764005911747,3.38,136.78,136.74,1.99999999]
[1764005911951,11.39526788,136.78,136.75,1.99999999]
[1764005912129,10.81526788,136.78,136.74,1.99999999]
[1764005912330,3.38,136.78,136.75,2.66999999]
[1764005912544,3.38,136.78,136.75,1.99999999]
[1764005912743,0.1,136.8,136.77,1.99999999]
[1764005913051,3.38,136.79,136.78,1.99999999]
[1764005914154,3.38,136.79,136.77,1.99999999]
[1764005914451,24.32413188,136.78,136.72,1.99999999]
[1764005914758,16.888864,136.78,136.72,1.99999999]
[1764005914922,7.31421884,136.72,136.7,1.99999999]
[1764005915122,3.38,136.71,136.7,1.99999999]
[1764005915457,10.81526788,136.71,136.67,2.66999999]
[1764005915642,3.38,136.71,136.67,2.66999999]
[1764005915830,3.38,136.71,136.7,1.99999999]
[1764005916347,3.38,136.71,136.68,2.66999999]
[1764005916571,7.31382373,136.73,136.7,0.67]
[1764005916739,7.31382373,136.73,136.7,2.66999999]
[1764005916924,3.38,136.72,136.71,1.99999999]
[1764005917119,3.38,136.72,136.71,2.66999999]
[1764005917748,7.43526788,136.75,136.72,1.99999999]
[1764005917956,3.38,136.74,136.72,1.99999999]
[1764005918762,10.69319223,136.74,136.72,1.99999999]
[1764005919539,7.43526788,136.73,136.7,1.99999999]
[1764005919739,10.69319223,136.74,136.7,1.99999999]
[1764005919740,7.43526788,136.71,136.7,1.99999999]
[1764005919959,3.38,136.71,136.7,1.99999999]
[1764005920473,16.308864,136.77,136.72,1.99999999]
[1764005920636,3.38,136.76,136.73,1.99999999]
[1764005920834,10.81526788,136.76,136.73,1.99999999]
[1764005921652,7.53526788,136.8,136.76,1.99999999]
[1764005921837,3.38,136.79,136.77,1.99999999]
[1764005922331,3.38,136.79,136.78,0.67]
[1764005922534,10.69047591,136.79,136.78,1.99999999]
[1764005923147,3.38,136.79,136.78,1.99999999]
[1764005923742,3.38,136.79,136.77,1.99999999]
[1764005924150,10.69063172,136.79,136.77,1.99999999]
[1764005924455,3.38,136.79,136.78,1.99999999]
[1764005924664,3.38,136.79,136.78,2.66999999]
[1764005925163,0.1,136.8,136.79,1.99999999]
[1764005925335,0.1,136.8,136.79,10.10526787]
[1764005925543,0.1,136.8,136.79,1.99999999]
[1764005925760,0.1,136.8,136.77,7.43526788]
[1764005925968,0.1,136.8,136.79,1.99999999]
[1764005926172,14.8452094,136.8,136.76,1.99999999]
[1764005926475,14.8452094,136.8,136.77,1.99999999]
[1764005926476,3.38,136.79,136.77,1.99999999]
[1764005926657,18.12602376,136.79,136.76,1.99999999]
[1764005926862,7.43526788,136.78,136.77,1.99999999]
[1764005927070,7.43526788,136.78,136.74,2.66999999]
[1764005927246,7.43526788,136.77,136.73,1.99999999]
[1764005927445,3.38,136.76,136.75,1.99999999]
[1764005927955,3.38,136.76,136.75,2.70999999]
[1764005928153,10.81526788,136.76,136.73,1.99999999]
[1764005928351,10.81526788,136.76,136.71,9.43526787]
[1764005928542,18.12757013,136.76,136.73,1.99999999]
[1764005928743,3.38,136.76,136.74,0.71]
[1764005929049,3.38,136.76,136.74,8.14526788]
[1764005929360,3.38,136.76,136.75,9.43526787]
[1764005929552,3.38,136.76,136.75,10.14526787]
[1764005929955,3.38,136.76,136.75,2.70999999]
[1764005930467,3.38,136.76,136.75,1.99999999]
[1764005930973,3.38,136.76,136.75,2.70999999]
[1764005931150,3.38,136.76,136.75,10.14526787]
[1764005931351,3.38,136.76,136.75,2.70999999]
[1764005931777,0.1,136.8,136.76,1.99999999]
[1764005932072,0.1,136.8,136.78,1.99999999]
[1764005932073,3.48,136.8,136.78,1.99999999]
[1764005932280,7.43526788,136.79,136.74,1.99999999]
[1764005932482,7.43526788,136.77,136.74,1.99999999]
[1764005932685,7.43526788,136.75,136.71,1.99999999]
[1764005932888,3.38,136.76,136.69,0.69]
[1764005933062,3.38,136.76,136.69,2.68999999]
[1764005933063,0.58,136.75,136.69,2.68999999]
[1764005933260,7.43526788,136.74,136.69,2.68999999]
[1764005933460,7.43526788,136.73,136.71,1.99999999]
[1764005933676,3.38,136.72,136.69,2.68999999]
[1764005933877,3.38,136.72,136.69,0.69]
[1764005934186,10.81526788,136.72,136.7,1.99999999]
[1764005934683,7.43526788,136.71,136.7,1.99999999]
[1764005934875,18.12966644,136.72,136.7,1.99999999]
[1764005935578,10.69439856,136.72,136.7,1.99999999]
[1764005935789,3.38,136.72,136.7,1.99999999]
[1764005935979,3.38,136.72,136.71,2.68999999]
[1764005936285,7.43526788,136.75,136.72,1.99999999]
[1764005936480,3.38,136.73,136.72,1.99999999]
[1764005937092,3.38,136.73,136.72,2.68999999]
[1764005937311,25.81054958,136.8,136.74,1.99999999]
[1764005937599,3.38,136.78,136.75,1.99999999]
[1764005938187,3.38,136.78,136.75,9.43526787]
[1764005938383,3.38,136.78,136.75,10.12526787]
[1764005938566,3.38,136.78,136.75,2.68999999]
[1764005938777,7.31154492,136.77,136.75,2.68999999]
[1764005939285,7.31154492,136.77,136.75,0.69]
[1764005939584,7.31154492,136.77,136.75,10.12526787]
[1764005939984,3.38,136.78,136.75,10.12526787]
[1764005939985,3.38,136.78,136.76,8.12526788]
[1764005940169,3.38,136.78,136.77,1.99999999]
[1764005940576,0.1,136.8,136.78,1.99999999]
[1764005940758,4.06,136.8,136.78,1.99999999]
[1764005940964,3.48,136.8,136.79,1.99999999]
[1764005941364,3.48,136.8,136.78,1.99999999]
[1764005941689,8.01526788,136.79,136.74,9.43526787]
[1764005941866,7.43526788,136.78,136.74,1.99999999]
[1764005942067,3.38,136.77,136.74,0.69]
[1764005942469,3.38,136.77,136.75,1.99999999]
[1764005942891,7.31207955,136.76,136.75,1.99999999]
[1764005943274,33.60754631,136.76,136.71,1.99999999]
[1764005943474,7.43526788,136.75,136.71,1.99999999]
[1764005943673,3.38,136.74,136.71,2.68999999]
[1764005944166,3.38,136.74,136.73,1.99999999]
[1764005944369,3.38,136.74,136.72,1.99999999]
[1764005944564,3.38,136.74,136.71,2.68999999]
[1764005944865,10.69366227,136.74,136.71,2.68999999]
[1764005945300,10.69366227,136.74,136.73,1.99999999]
[1764005945600,10.69366227,136.74,136.67,7.31686138]
[1764005945601,36.41180275,136.74,136.68,1.99999999]
[1764005945891,36.41180275,136.74,136.71,1.99999999]
[1764005946074,7.43526788,136.73,136.68,0.69]
[1764005946262,8.01526788,136.73,136.68,0.69]
[1764005946466,28.97653487,136.74,136.71,1.99999999]
[1764005946688,7.43526788,136.73,136.71,1.99999999]
[1764005946873,3.38,136.73,136.71,2.68999999]
[1764005947070,3.38,136.73,136.71,1.99999999]
[1764005947310,10.81526788,136.73,136.71,1.99999999]
[1764005947600,3.38,136.73,136.71,9.43526787]
[1764005947766,3.38,136.73,136.71,1.99999999]
[1764005947967,3.38,136.73,136.72,1.99999999]
[1764005948393,3.38,136.73,136.72,2.68999999]
[1764005948568,3.38,136.74,136.72,2.68999999]
[1764005948779,3.38,136.74,136.73,1.99999999]
[1764005949088,3.38,136.74,136.73,0.69]
[1764005949274,3.38,136.74,136.73,15.63039234]
[1764005950176,3.38,136.74,136.73,2.68999999]
[1764005950374,3.38,136.78,136.73,0.69]
[1764005950694,16.32039235,136.78,136.74,2.68999999]
[1764005950880,7.31154492,136.77,136.74,2.68999999]
[1764005951277,10.69118947,136.78,136.75,2.68999999]
[1764005951483,10.69118947,136.78,136.76,1.99999999]
[1764005951688,10.69118947,136.78,136.66,2.0]
[1764005951689,13.52039235,136.77,136.72,1.99999999]
[1764005951879,12.94039235,136.74,136.71,1.99999999]
[1764005952201,16.32039235,136.73,136.7,1.99999999]
[1764005952409,16.32039235,136.73,136.68,12.94039235]
[1764005952410,16.32039235,136.73,136.68,14.94039234]
[1764005952573,16.32039235,136.73,136.69,2.68999999]
[1764005952903,3.38,136.73,136.69,15.63039234]
[1764005953196,41.91851414,136.73,136.69,2.68999999]
[1764005953377,41.91851414,136.73,136.71,1.99999999]
[1764005953576,12.94039235,136.72,136.69,1.99999999]
[1764005953797,28.97812179,136.73,136.68,12.94039235]
[1764005953971,7.31336331,136.74,136.71,14.94039234]
[1764005954176,12.94039235,136.76,136.74,1.99999999]
[1764005954374,3.38,136.75,136.74,1.99999999]
[1764005955077,10.69261425,136.75,136.74,1.99999999]
[1764005956494,10.69261425,136.75,136.73,1.99999999]
[1764005956495,23.6330066,136.75,136.73,1.99999999]
[1764005956689,41.91454224,136.75,136.72,1.99999999]
[1764005956994,41.91454224,136.75,136.74,1.99999999]
[1764005957309,10.69261425,136.75,136.74,1.99999999]
[1764005957485,23.6330066,136.75,136.74,1.99999999]
[1764005957682,10.69261425,136.75,136.74,1.99999999]
[1764005957891,3.38,136.75,136.74,1.99999999]
[1764005958283,23.6330066,136.75,136.74,1.99999999]
[1764005958587,10.69261425,136.75,136.74,1.99999999]
[1764005959276,3.38,136.75,136.74,1.99999999]
[1764005959475,10.69261425,136.75,136.74,1.99999999]
[1764005959872,12.94039235,136.76,136.74,1.99999999]
[1764005960071,12.94039235,136.76,136.71,13.63039235]
[1764005960072,12.94039235,136.76,136.71,8.15429234]
[1764005960289,12.94039235,136.73,136.64,7.31811743]
[1764005960473,3.36,136.72,136.7,12.94039235]
[1764005960684,3.36,136.72,136.71,12.94039235]
[1764005960898,3.36,136.74,136.71,12.94039235]
[1764005961105,3.36,136.74,136.73,12.94039235]
[1764005961277,31.31596046,136.8,136.73,12.94039235]
[1764005961477,3.36,136.79,136.75,12.94039235]
[1764005961684,16.30039235,136.79,136.74,12.94039235]
[1764005961880,13.66039235,136.78,136.69,7.31568747]
[1764005962107,13.66039235,136.78,136.73,12.94039235]
[1764005962280,3.36,136.79,136.75,12.94039235]
[1764005962477,3.36,136.79,136.74,12.94039235]
[1764005962679,3.36,136.79,136.77,12.94039235]
[1764005963086,3.36,136.79,136.78,0.72]
[1764005963579,3.36,136.79,136.78,13.66039235]
[1764005964015,3.36,136.79,136.71,23.62328526]
[1764005964188,4.08,136.79,136.71,7.31442126]
[1764005964391,3.36,136.79,136.76,12.94039235]
[1764005964699,3.36,136.79,136.77,12.94039235]
[1764005965204,4.08,136.79,136.75,12.94039235]
[1764005965412,3.36,136.79,136.76,12.94039235]
[1764005965615,3.36,136.79,136.77,12.94039235]
[1764005965785,23.61104222,136.79,136.75,12.94039235]
[1764005965983,0.72,136.78,136.74,12.94039235]
[1764005966304,0.1,136.8,136.71,0.72]
[1764005966305,0.82,136.8,136.71,0.72]
[1764005966507,0.82,136.8,136.76,12.94039235]
[1764005966708,8.12994264,136.8,136.77,12.94039235]
[1764005967090,8.12994264,136.8,136.74,0.72]
[1764005967287,8.12994264,136.8,136.76,12.94039235]
[1764005968008,0.72,136.79,136.75,12.94039235]
[1764005968213,3.36,136.78,136.76,12.94039235]
[1764005968391,3.36,136.78,136.77,12.94039235]
[1764005968597,0.1,136.8,136.77,12.94039235]
[1764005968598,3.36,136.79,136.77,12.94039235]
[1764005968994,0.82,136.8,136.76,12.94039235]
[1764005969206,3.36,136.79,136.76,12.94039235]
[1764005969406,16.30039235,136.79,136.7,0.72]
[1764005969602,12.94039235,136.77,136.72,12.94039235]
[1764005969884,13.66039235,136.78,136.73,12.94039235]
[1764005970318,0.72,136.78,136.73,13.66039235]
[1764005970528,0.72,136.78,136.74,12.94039235]
[1764005970680,0.72,136.78,136.73,0.72]
[1764005970886,0.72,136.78,136.74,12.94039235]
[1764005972113,0.1,136.8,136.77,12.94039235]
[1764005972296,0.1,136.8,136.79,12.94039235]
[1764005972502,0.1,136.8,136.75,0.72]
[1764005973026,0.1,136.8,136.79,12.94039235]
[1764005974820,0.1,136.8,136.77,0.72]
[1764005975003,0.1,136.8,136.78,12.94039235]
[1764005975431,0.1,136.8,136.79,12.94039235]
[1764005976421,0.1,136.8,136.73,3.36]
[1764005976721,0.1,136.8,136.78,12.94039235]
[1764005977087,0.1,136.8,136.76,0.72]
[1764005977304,0.1,136.8,136.78,12.94039235]
[1764005977532,17.02039235,136.79,136.74,12.94039235]
[1764005977815,3.36,136.79,136.74,12.94039235]
[1764005978035,3.36,136.79,136.68,12.16994492]
[1764005978036,3.36,136.79,136.76,12.94039235]
[1764005978201,3.36,136.79,136.77,12.94039235]
[1764005978399,4.08,136.79,136.76,12.94039235]
[1764005980730,4.08,136.79,136.75,0.72]
[1764005980731,3.36,136.79,136.77,12.94039235]
[1764005981225,4.08,136.79,136.77,12.94039235]
[1764005981389,4.08,136.79,136.76,12.94039235]
[1764005982525,4.08,136.79,136.77,12.94039235]
[1764005982723,0.1,136.8,136.78,12.94039235]
[1764005982921,0.1,136.8,136.79,12.94039235]
[1764005983244,0.1,136.8,136.77,0.72]
[1764005983529,0.1,136.8,136.78,12.94039235]
[1764005984124,0.82,136.8,136.75,0.72]
[1764005984315,3.36,136.79,136.75,12.94039235]
[1764005984498,0.72,136.78,136.75,12.94039235]
[1764005985009,13.66039235,136.78,136.7,0.72]
[1764005985206,12.94039235,136.76,136.71,12.94039235]
[1764005985520,0.72,136.78,136.72,12.94039235]
[1764005985521,3.36,136.75,136.72,12.94039235]
[1764005985702,0.72,136.77,136.74,12.94039235]
[1764005985896,0.72,136.77,136.7,0.72]
[1764005986097,13.66039235,136.76,136.71,12.94039235]
[1764005986524,0.72,136.75,136.71,12.94039235]
[1764005986729,3.36,136.74,136.71,12.94039235]
[1764005986915,3.36,136.74,136.72,12.94039235]
[1764005987121,3.36,136.74,136.69,0.72]
[1764005987122,0.67,136.73,136.69,0.72]
[1764005987326,0.67,136.73,136.71,12.94039235]
[1764005987933,3.36,136.74,136.72,12.94039235]
[1764005988237,4.03,136.77,136.73,12.94039235]
[1764005988433,4.03,136.77,136.75,12.94039235]
[1764005988607,0.67,136.76,136.73,12.94039235]
[1764005988807,0.67,136.76,136.72,12.94039235]
[1764005989546,0.67,136.76,136.73,12.94039235]
[1764005989841,3.36,136.77,136.75,12.94039235]
[1764005990011,0.67,136.79,136.76,12.94039235]
[1764005990345,0.67,136.79,136.67,66.308864]
[1764005990346,4.03,136.78,136.74,12.94039235]
[1764005990698,0.67,136.77,136.74,12.94039235]
[1764005991321,0.67,136.77,136.75,12.94039235]
[1764005991710,0.67,136.77,136.76,12.94039235]
[1764005992699,3.36,136.78,136.76,12.94039235]
[1764005992938,0.67,136.77,136.76,12.94039235]
[1764005993134,0.67,136.77,136.75,12.94039235]
[1764005993322,3.36,136.78,136.75,12.94039235]
[1764005993524,4.03,136.78,136.75,12.94039235]
[1764005993725,3.36,136.78,136.75,12.94039235]
[1764005993946,4.03,136.78,136.75,12.94039235]
[1764005994719,4.03,136.78,136.76,12.94039235]
[1764005995539,3.36,136.78,136.76,12.94039235]
[1764005995757,3.36,136.78,136.77,12.94039235]
[1764005996240,4.03,136.78,136.77,12.94039235]
[1764005997717,4.03,136.78,136.76,12.94039235]
[1764005998017,3.36,136.78,136.75,12.94039235]
[1764005998425,0.67,136.77,136.75,12.94039235]
[1764005998821,3.36,136.78,136.75,12.94039235]
[1764005999022,3.36,136.78,136.77,12.94039235]
[1764005999328,4.03,136.78,136.77,12.94039235]
[1764005999528,3.36,136.78,136.77,12.94039235]
[1764006000041,0.67,136.78,136.77,12.94039235]
[1764006000233,0.1,136.83,136.78,0.69]
[1764006000436,0.1,136.83,136.82,12.94039235]
[1764006000833,0.1,136.83,136.82,13.63039235]
[1764006001139,0.1,136.83,136.82,0.69]
[1764006001439,0.1,136.83,136.82,13.63039235]
[1764006001633,0.77,136.83,136.78,0.69]
[1764006001827,0.77,136.83,136.75,16.308864]
[1764006002030,17.078864,136.83,136.76,12.94039235]
[1764006002226,16.978864,136.82,136.78,12.94039235]
[1764006002437,16.978864,136.82,136.79,12.94039235]
[1764006002645,0.67,136.81,136.76,12.94039235]
[1764006002844,0.67,136.81,136.75,0.69]
[1764006002845,0.67,136.81,136.8,12.94039235]
[1764006003140,0.77,136.83,136.8,12.94039235]
[1764006003448,0.1,136.83,136.82,12.94039235]
[1764006003952,0.1,136.92,136.83,8.80994492]
[1764006004143,0.1,136.92,136.91,12.94039235]
[1764006004626,0.77,136.92,136.88,12.94039235]
[1764006004842,0.77,136.92,136.91,12.94039235]
[1764006005223,0.77,136.92,136.9,12.94039235]
[1764006005978,0.77,136.92,136.83,0.69]
[1764006006264,0.77,136.92,136.89,12.94039235]
[1764006006623,0.77,136.92,136.91,12.94039235]
[1764006007227,0.1,136.92,136.91,12.94039235]
[1764006007424,0.1,136.92,136.91,13.63039235]
[1764006008361,0.67,137.02,136.91,29.93925635]
[1764006008522,0.67,137.02,136.99,7.40256819]
[1764006008923,0.67,137.02,137.0,7.40256819]
[1764006009124,0.67,137.02,137.01,7.40256819]
[1764006009728,16.308864,137.0,136.91,0.69]
[1764006010024,0.67,137.02,136.97,7.40256819]
[1764006010250,16.978864,137.01,136.97,7.40256819]
[1764006010557,16.978864,137.01,136.96,7.40256819]
[1764006010762,0.67,137.0,136.96,7.40256819]
[1764006011126,0.67,137.0,136.95,7.40256819]
[1764006011334,0.67,137.0,136.96,7.40256819]
[1764006012124,0.67,137.0,136.95,7.40256819]
[1764006012324,8.07256819,137.0,136.93,7.40256819]
[1764006012556,0.67,137.0,136.94,7.40256819]
[1764006012758,0.67,136.99,136.93,7.40256819]
[1764006012937,27.07143219,136.98,136.91,7.40256819]
[1764006013336,16.308864,136.93,136.83,0.69]
[1764006013562,3.36,136.93,136.88,7.40256819]
[1764006013745,4.03,136.93,136.88,7.40256819]
[1764006013936,3.36,136.93,136.89,7.40256819]
[1764006014235,19.668864,136.97,136.92,7.40256819]
[1764006014445,20.338864,136.97,136.93,7.40256819]
[1764006014758,0.67,136.96,136.93,7.40256819]
[1764006015332,3.36,136.97,136.94,7.40256819]
[1764006015543,3.36,136.97,136.93,7.40256819]
[1764006015870,0.67,136.96,136.91,7.40256819]
[1764006016032,0.67,136.96,136.92,7.40256819]
[1764006016233,0.67,136.96,136.93,7.40256819]
[1764006016431,7.40256819,137.05,136.89,0.69]
[1764006016432,0.67,137.01,136.95,7.40256819]
[1764006016663,0.67,137.01,136.97,7.40256819]
[1764006016864,0.67,137.01,136.96,7.40256819]
[1764006017031,0.67,137.01,136.94,7.40256819]
[1764006017032,7.40256819,136.99,136.94,7.40256819]
[1764006017233,0.67,136.99,136.97,7.40256819]
[1764006017756,8.07256819,136.99,136.92,0.69]
[1764006017959,7.40256819,136.95,136.87,0.69]
[1764006018162,7.40256819,136.95,136.89,7.40256819]
[1764006018368,8.07256819,136.94,136.88,7.40256819]
[1764006018664,7.40256819,136.93,136.87,7.40256819]
[1764006018872,8.07256819,136.93,136.83,8.80994492]
[1764006019207,7.40256819,136.91,136.87,7.40256819]
[1764006019331,4.03,136.92,136.87,7.40256819]
[1764006019332,11.43256819,136.92,136.87,7.40256819]
[1764006019531,3.36,136.92,136.88,7.40256819]
[1764006019769,3.36,136.92,136.89,7.40256819]
[1764006020067,3.36,136.92,136.91,7.40256819]
[1764006020364,3.36,136.92,136.9,7.40256819]
[1764006020568,3.36,136.92,136.91,7.40256819]
[1764006021068,0.67,136.94,136.91,7.40256819]
[1764006021248,0.67,136.96,136.93,7.40256819]
[1764006021455,3.36,136.97,136.95,7.40256819]
[1764006021938,0.67,137.0,136.96,7.40256819]
[1764006022138,0.67,137.0,136.97,7.40256819]
[1764006022349,0.67,137.0,136.96,7.40256819]
[1764006022660,0.67,137.0,136.92,0.69]
[1764006022661,0.67,137.0,136.97,7.40256819]
[1764006023444,0.67,137.0,136.94,0.68]
[1764006023645,0.67,137.0,136.89,61.54045846]
[1764006023646,8.07256819,137.0,136.91,0.68]
[1764006023841,0.67,137.0,136.95,7.40256819]
[1764006024037,3.36,137.02,136.9,0.68]
[1764006024038,7.40256819,136.98,136.9,0.68]
[1764006024263,7.40256819,136.98,136.92,7.40256819]
[1764006024470,0.71,136.97,136.92,7.40256819]
[1764006024669,0.71,136.97,136.93,7.40256819]
[1764006025177,0.71,136.99,136.95,7.40256819]
[1764006025541,8.11256819,136.99,136.94,7.40256819]
[1764006025763,8.11256819,136.99,136.93,7.40256819]
[1764006025948,0.71,136.98,136.94,7.40256819]
[1764006026347,0.71,136.98,136.96,7.40256819]
[1764006026567,0.71,136.98,136.88,58.1331351]
[1764006026568,0.71,136.98,136.95,7.40256819]
[1764006028077,0.71,136.98,136.91,0.68]
[1764006028274,8.11256819,136.98,136.92,7.40256819]
[1764006028581,0.71,136.98,136.94,7.40256819]
[1764006028789,0.71,136.98,136.9,0.68]
[1764006028790,0.71,136.97,136.9,0.68]
[1764006028975,7.40256819,136.96,136.91,7.40256819]
[1764006029165,0.71,136.97,136.91,7.40256819]
[1764006029369,0.71,136.96,136.91,7.40256819]
[1764006029564,7.40256819,136.95,136.89,7.40256819]
[1764006029779,7.40256819,136.94,136.88,7.40256819]
[1764006030092,4.07,136.96,136.92,7.40256819]
[1764006030450,3.36,136.96,136.94,7.40256819]
[1764006030762,4.07,137.01,136.95,7.40256819]
[1764006030973,3.36,137.01,136.98,7.40256819]
[1764006031172,4.07,137.01,136.98,7.40256819]
[1764006031552,3.36,137.04,136.91,16.308864]
[1764006031774,0.71,137.01,136.98,7.40256819]
[1764006031977,0.71,137.01,136.94,0.68]
[1764006031978,3.36,137.04,136.99,7.40256819]
[1764006032292,4.07,137.04,137.01,7.40256819]
[1764006032501,0.71,137.03,137.0,7.40256819]
[1764006032791,0.71,137.03,136.98,7.40256819]
[1764006033377,0.71,137.03,136.99,7.40256819]
[1764006033693,0.71,137.03,137.0,7.40256819]
[1764006034091,0.71,137.03,136.99,7.40256819]
[1764006034397,0.71,137.03,137.0,7.40256819]
[1764006034884,0.71,137.03,136.99,7.40256819]
[1764006035094,0.71,137.03,136.98,7.40256819]
[1764006036155,0.71,137.03,136.99,7.40256819]
[1764006036361,0.71,137.03,136.98,7.40256819]
[1764006036774,8.11256819,137.03,136.97,7.40256819]
[1764006037177,0.71,137.02,136.93,0.68]
[1764006037463,8.11256819,137.02,136.97,7.40256819]
[1764006037878,0.71,137.01,136.98,7.40256819]
[1764006038207,16.308864,137.03,136.98,7.40256819]
[1764006038494,0.71,137.02,136.99,7.40256819]
[1764006038694,0.71,137.02,136.98,7.40256819]
[1764006039009,7.40256819,136.99,136.92,7.40256819]
[1764006039293,3.36,136.98,136.94,7.40256819]
[1764006039479,4.07,136.98,136.94,7.40256819]
[1764006039793,0.71,136.97,136.94,7.40256819]
[1764006039990,0.71,136.97,136.93,7.40256819]
[1764006040204,0.71,136.97,136.94,7.40256819]
[1764006040495,16.308864,137.01,136.96,7.40256819]
[1764006040496,0.71,137.0,136.96,7.40256819]
[1764006040787,0.71,137.0,136.91,0.68]
[1764006041190,0.71,137.0,136.95,7.40256819]
[1764006041659,0.71,137.0,136.88,57.40256819]
[1764006041660,7.40256819,136.99,136.93,7.40256819]
[1764006041879,7.40256819,136.98,136.93,7.40256819]
[1764006042081,0.71,136.98,136.94,7.40256819]
[1764006042298,0.71,136.98,136.95,7.40256819]
[1764006042607,4.05,137.0,136.97,7.40256819]
[1764006042811,0.71,137.0,136.99,7.40256819]
[1764006042980,0.71,137.01,136.99,7.40256819]
[1764006043405,8.00922901,137.01,136.95,0.68]
[1764006043592,26.2560723,137.01,136.98,7.40256819]
[1764006043790,0.71,137.0,136.98,7.40256819]
[1764006044375,4.05,137.02,136.99,7.40256819]
[1764006045482,11.34827493,137.02,137.0,7.40256819]
[1764006045686,29.59378653,137.02,136.96,0.68]
[1764006045990,29.59378653,137.02,136.98,7.40256819]
[1764006045991,0.71,137.01,136.98,7.40256819]
[1764006046187,8.11256819,137.01,136.91,0.73040683]
[1764006046387,8.11256819,137.01,136.94,7.40256819]
[1764006046388,0.71,137.01,136.94,7.40256819]
[1764006046594,7.40256819,136.99,136.94,7.40256819]
[1764006046884,4.05,137.0,136.95,7.40256819]
[1764006047204,0.66,136.99,136.95,7.40256819]
[1764006047709,25.55117534,136.98,136.95,7.40256819]
[1764006048082,26.21117534,136.98,136.95,7.40256819]
[1764006048378,0.66,136.97,136.93,7.40256819]
[1764006048580,10.74256819,136.96,136.9,0.68]
[1764006048780,3.34,136.96,136.92,7.40256819]
[1764006049083,4.0,136.96,136.92,7.40256819]
[1764006049310,3.34,136.96,136.93,7.40256819]
[1764006049511,11.30183,136.96,136.94,7.40256819]
[1764006049713,7.30033581,136.98,136.95,7.40256819]
[1764006049913,7.30033581,136.98,136.96,7.40256819]
[1764006050115,7.96033581,136.98,136.96,7.40256819]
[1764006050500,7.29996859,136.99,136.97,7.40256819]
[1764006050725,7.29996859,136.99,136.98,7.40256819]
[1764006050912,22.24789106,137.01,136.98,7.40256819]
[1764006050913,7.29943332,137.0,136.98,7.40256819]
[1764006051296,10.6387764,137.01,136.99,7.40256819]
[1764006051497,10.6387764,137.01,136.95,0.68]
[1764006051709,11.2987764,137.01,136.97,7.40256819]
[1764006052221,11.2987764,137.01,136.95,0.68]
[1764006052222,11.2987764,137.01,136.98,7.40256819]
[1764006052602,0.69,137.0,136.98,7.40256819]
[1764006053295,10.6387764,137.01,136.98,7.40256819]
[1764006053500,10.6387764,137.01,136.99,7.40256819]
[1764006054024,11.3287764,137.01,136.98,7.40256819]